bitfinex/quotes_SOLUSD_20260117
["timestamp","ask_amount","ask_price","bid_price","bid_amount"]
[1768688838858,0.69559388,143.76,143.7,1.62713561]
[1768688839058,0.69559388,143.74,143.7,1.62713561]
[1768688839267,15.93559388,143.75,143.71,1.62713561]
[1768688840170,22.89218445,143.75,143.72,1.62713561]
[1768688841183,6.95659057,143.75,143.72,1.62713561]
[1768688844277,0.7072538,143.73,143.69,1.91356951]
[1768688844467,2.78909485,143.73,143.69,1.91356951]
[1768688845269,9.74705712,143.73,143.69,1.91356951]
[1768688846790,2.79462864,143.72,143.69,1.91356951]
[1768688847466,27.14631525,143.73,143.69,1.91356951]
[1768688848168,2.08184105,143.72,143.69,0.1]
[1768688848388,0.71458998,143.71,143.69,0.1]
[1768688848562,7.6432296,143.71,143.69,0.1]
[1768688848876,9.72507065,143.71,143.69,0.1]
[1768688849077,26.43662567,143.71,143.67,1.91356951]
[1768688849280,2.08184105,143.69,143.65,1.81356951]
[1768688849487,1.51916532,143.69,143.65,1.81356951]
[1768688850565,9.06689455,143.69,143.65,1.81356951]
[1768688852067,9.62957028,143.69,143.65,1.81356951]
[1768688853391,7.54772923,143.69,143.65,1.81356951]
[1768688853765,7.54772923,143.69,143.66,1.64860769]
[1768688854181,7.55577704,143.7,143.66,1.64860769]
[1768688855184,7.55577704,143.7,143.66,8.60941173]
[1768688855391,7.55577704,143.7,143.67,1.64860769]
[1768688858174,0.60412793,143.72,143.68,1.64860769]
[1768688859392,9.6440698,143.72,143.68,1.64860769]
[1768688860395,0.60768534,143.71,143.68,1.64860769]
[1768688860588,7.56620119,143.71,143.68,1.64860769]
[1768688860972,0.60943345,143.7,143.67,1.64860769]
[1768688861190,9.0403569,143.71,143.67,1.64860769]
[1768688861191,9.64979035,143.71,143.67,1.64860769]
[1768688861393,0.60943345,143.67,143.63,1.64860769]
[1768688861580,2.08184105,143.67,143.63,1.64860769]
[1768688861768,2.08184105,143.68,143.63,1.64860769]
[1768688862292,2.08184105,143.69,143.64,1.64860769]
[1768688862512,6.95991091,143.68,143.64,1.64860769]
[1768688862677,6.95991091,143.68,143.65,1.64860769]
[1768688863196,6.92991092,143.68,143.65,1.64860769]
[1768688870183,6.89991093,143.68,143.65,1.64860769]
[1768688875601,7.54238638,143.69,143.65,6.96129239]
[1768688875782,7.54238638,143.69,143.66,1.73756657]
[1768688880909,7.51238639,143.69,143.66,1.73756657]
[1768688881218,24.35729785,143.7,143.66,1.73756657]
[1768688881424,17.39549155,143.72,143.68,1.73756657]
[1768688881586,24.3496832,143.74,143.68,1.73756657]
[1768688881785,24.3496832,143.74,143.69,1.73756657]
[1768688881786,26.43152425,143.74,143.69,1.73756657]
[1768688882902,0.58449964,143.73,143.69,1.73756657]
[1768688883916,6.95797383,143.72,143.69,1.73756657]
[1768688884096,6.95753484,143.73,143.7,1.73756657]
[1768688885517,0.58713025,143.73,143.7,1.73756657]
[1768688886304,7.54491406,143.73,143.7,1.73756657]
[1768688891718,6.95778381,143.73,143.7,1.73756657]
[1768688895128,7.55239723,143.74,143.71,1.73756657]
[1768688895331,4.22076111,143.73,143.71,1.73756657]
[1768688895500,7.55239723,143.74,143.71,1.73756657]
[1768688895701,4.22103964,143.73,143.71,1.73756657]
[1768688895918,7.55239723,143.74,143.71,1.73756657]
[1768688896129,4.22082506,143.73,143.71,1.73756657]
[1768688896328,7.55239723,143.74,143.71,1.73756657]
[1768688896527,0.59945211,143.72,143.69,1.73756657]
[1768688897338,0.60048655,143.73,143.69,1.73756657]
[1768688898226,6.95797383,143.72,143.69,1.73756657]
[1768688903031,6.92797384,143.72,143.69,1.80760705]
[1768688904822,6.92797384,143.72,143.69,2.08273513]
[1768688905137,6.92797384,143.72,143.7,1.80760705]
[1768688907537,6.89797385,143.72,143.7,1.80760705]
[1768688908739,7.5693112,143.74,143.71,1.80760705]
[1768688910721,6.95730009,143.74,143.72,1.80760705]
[1768688911333,0.61378128,143.75,143.72,1.80760705]
[1768688912233,7.57032888,143.75,143.72,1.80760705]
[1768688912434,110.87172401,143.76,143.73,1.80760705]
[1768688924735,112.95445914,143.76,143.73,1.80760705]
[1768688925657,110.25621299,143.76,143.73,1.80760705]
[1768688932262,6.95621299,143.76,143.73,1.80760705]
[1768688938877,7.59217587,143.76,143.73,1.80760705]
[1768688944069,7.59510304,143.77,143.73,1.80760705]
[1768688947486,7.59510304,143.77,143.74,1.74123823]
[1768688947781,6.955554,143.77,143.74,1.74123823]
[1768688955694,7.59648835,143.78,143.74,8.69823738]
[1768688956890,0.64651658,143.77,143.74,8.69823738]
[1768688968311,6.95524773,143.78,143.75,1.87701829]
[1768688968505,7.60733031,143.78,143.75,1.81701829]
[1768688970421,0.65208258,143.78,143.75,8.7733731]
[1768688986027,7.6071892,143.78,143.75,1.81701829]
[1768689001137,2.08128598,143.77,143.71,17.39591204]
[1768689001341,2.08128598,143.76,143.71,17.39591204]
[1768689001643,1.78068993,143.75,143.66,3.61680993]
[1768689001846,24.34278223,143.78,143.68,2.08128598]
[1768689001847,1.78068993,143.73,143.68,2.08128598]
[1768689002139,1.78068993,143.73,143.69,2.08128598]
[1768689002927,1.78068993,143.73,143.7,6.95894224]
[1768689003535,1.78068993,143.73,143.7,8.79656158]
[1768689005244,1.78068993,143.73,143.69,1.83761934]
[1768689006540,1.75068994,143.73,143.69,1.83761934]
[1768689007322,1.75068994,143.73,143.7,6.95894224]
[1768689008132,9.03905302,143.73,143.68,1.83761934]
[1768689008332,0.59600294,143.72,143.68,1.83761934]
[1768689008625,0.59600294,143.72,143.69,1.83761934]
[1768689012950,0.56600295,143.72,143.69,1.83761934]
[1768689018246,7.52421049,143.72,143.69,1.83761934]
[1768689019442,7.4942105,143.72,143.69,1.83761934]
[1768689026168,7.46421051,143.72,143.69,1.83761934]
[1768689026366,2.08305862,143.7,143.66,1.74637815]
[1768689027143,2.08305862,143.7,143.66,8.70722134]
[1768689027560,2.08305862,143.7,143.66,1.74637815]
[1768689028048,0.26580057,143.69,143.66,1.74637815]
[1768689028760,0.26580057,143.69,143.66,8.70725743]
[1768689030746,9.30830122,143.69,143.66,1.74637815]
[1768689033255,2.29831038,143.68,143.64,8.70812713]
[1768689033452,0.21525176,143.68,143.64,8.70812713]
[1768689033775,0.20558958,143.66,143.62,8.65270418]
[1768689033962,0.20558958,143.66,143.63,1.68994572]
[1768689034366,0.20558958,143.66,143.63,8.65222594]
[1768689034578,0.19603837,143.67,143.63,8.65222594]
[1768689034780,0.19603837,143.67,143.64,1.68994572]
[1768689035167,0.19603837,143.67,143.63,8.65222594]
[1768689035359,0.18659687,143.66,143.63,1.68994572]
[1768689035754,7.14656395,143.68,143.64,1.68994572]
[1768689036886,0.17726382,143.67,143.64,1.68994572]
[1768689037082,0.16803796,143.68,143.65,1.68994572]
[1768689038466,7.11834462,143.69,143.65,1.68994572]
[1768689038669,822.19908811,143.7,143.66,1.68994572]
[1768689039057,822.34899105,143.7,143.66,1.68994572]
[1768689041186,822.34899105,143.7,143.66,8.65077992]
[1768689041365,822.34899105,143.7,143.67,1.68994572]
[1768689041983,0.13218212,143.69,143.66,1.68994572]
[1768689043971,822.305445,143.7,143.66,1.68994572]
[1768689044181,824.38850362,143.7,143.66,1.68994572]
[1768689044864,800.0,143.7,143.67,1.68994572]
[1768689045569,806.95916554,143.7,143.67,1.68994572]
[1768689046110,800.0,143.7,143.68,1.68994572]
[1768689046779,800.0,143.7,143.68,1.62994572]
[1768689054799,800.0,143.7,143.68,1.56994572]
[1768689061398,806.95921255,143.7,143.68,1.56994572]
[1768689061900,800.0,143.7,143.68,1.50994572]
[1768689064099,0.12967647,143.69,143.66,1.60612157]
[1768689064291,0.12967647,143.69,143.66,8.56684874]
[1768689064888,0.12967647,143.69,143.66,6.96086326]
[1768689065888,0.12967647,143.69,143.66,1.60612157]
[1768689066288,800.1167672,143.7,143.66,1.60612157]
[1768689067602,807.07576352,143.7,143.66,8.56685845]
[1768689068984,806.95899632,143.7,143.66,8.56685845]
[1768689069201,0.09789203,143.69,143.66,8.56685845]
[1768689070807,800.0,143.7,143.67,1.60612157]
[1768689071592,800.08566715,143.7,143.67,1.60612157]
[1768689071988,800.0,143.7,143.69,1.60612157]
[1768689072207,799.92562147,143.7,143.69,1.60612157]
[1768689072512,799.92562147,143.7,143.69,3.68918019]
[1768689073510,799.92562147,143.7,143.69,1.60612157]
[1768689073892,562.22998344,143.7,143.69,9.04248516]
[1768689074110,494.68857106,143.7,143.69,9.04248516]
[1768689074410,325.09327448,143.7,143.69,9.04248516]
[1768689074586,251.65270574,143.7,143.69,9.04248516]
[1768689075086,103.3805475,143.7,143.69,9.04248516]
[1768689075285,33.11421529,143.7,143.69,9.04248516]
[1768689075888,15.24,143.75,143.7,1.5262486]
[1768689076104,15.24,143.75,143.72,1.5262486]
[1768689077401,15.24,143.75,143.72,9.04057883]
[1768689077610,1.54365748,143.77,143.73,2.08305862]
[1768689077817,16.78365748,143.78,143.73,2.08305862]
[1768689077990,1.54365748,143.77,143.73,2.08305862]
[1768689078191,3.6267161,143.77,143.72,6.95752021]
[1768689078390,1.54365748,143.75,143.72,6.95752021]
[1768689078808,1.54365748,143.78,143.72,6.95752021]
[1768689079112,1.54365748,143.77,143.72,9.04057883]
[1768689079310,1.54365748,143.77,143.73,7.18914307]
[1768689079691,1.54365748,143.79,143.74,0.23180134]
[1768689080204,1.54365748,143.78,143.74,0.23180134]
[1768689080920,1.54365748,143.78,143.74,7.18840509]
[1768689085700,1.7405822,143.77,143.74,6.95660375]
[1768689101419,1.91281296,143.75,143.71,6.95830331]
[1768689101607,1.91281296,143.74,143.71,7.74407777]
[1768689108438,1.91281296,143.76,143.71,9.82520723]
[1768689117742,8.86889886,143.76,143.71,9.82520723]
[1768689117964,1.93380504,143.75,143.71,9.82520723]
[1768689118834,1.93380504,143.75,143.71,7.74407777]
[1768689120140,1.93380504,143.75,143.71,9.82520723]
[1768689125845,1.93380504,143.75,143.71,7.74407777]
[1768689129658,1.93380504,143.75,143.71,9.82520723]
[1768689136845,1.93380504,143.75,143.71,7.74407777]
[1768689138253,1.93380504,143.77,143.72,1.37099789]
[1768689138456,1.93380504,143.77,143.72,1.31099789]
[1768689138656,1.93380504,143.76,143.72,1.31099789]
[1768689140054,1.93380504,143.76,143.73,6.95748973]
[1768689140262,1.93380504,143.76,143.73,6.89748973]
[1768689140562,1.93380504,143.76,143.73,6.83748973]
[1768689145254,2.20937699,143.75,143.72,8.26885414]
[1768689147465,2.20937699,143.77,143.74,3.50587355]
[1768689147657,2.20937699,143.77,143.74,3.44587355]
[1768689148445,2.20937699,143.77,143.74,10.4026203]
[1768689150862,2.20937699,143.79,143.75,10.43273571]
[1768689153170,2.20937699,143.79,143.76,3.50572261]
[1768689153470,2.20937699,143.79,143.76,1.4242381]
[1768689154148,2.20937699,143.79,143.76,8.3800552]
[1768689158554,2.20937699,143.79,143.76,8.3200552]
[1768689159450,2.08148451,143.77,143.66,34.5361054]
[1768689159668,2.2530418,143.77,143.71,2.08148451]
[1768689159860,2.2530418,143.76,143.71,2.08148451]
[1768689160556,2.2530418,143.76,143.73,6.95730026]
[1768689160770,2.2530418,143.76,143.72,6.95797383]
[1768689163971,2.2530418,143.76,143.72,9.15529415]
[1768689168964,2.2530418,143.76,143.73,9.15475771]
[1768689175296,6.95458654,143.79,143.74,2.30364645]
[1768689175497,2.36401605,143.76,143.73,2.30364645]
[1768689175688,4.44550056,143.76,143.73,2.30364645]
[1768689177185,2.36401605,143.76,143.73,2.30364645]
[1768689179679,11.40194627,143.76,143.73,2.30364645]
[1768689179879,10.50194627,143.76,143.73,2.30364645]
[1768689188305,8.42046176,143.76,143.73,2.30364645]
[1768689188519,10.50194627,143.76,143.73,2.30364645]
[1768689189391,8.42046176,143.76,143.73,2.30364645]
[1768689209335,6.95644571,143.76,143.73,2.30364645]
[1768689209629,2.44095613,143.75,143.72,9.37545296]
[1768689228246,2.44095613,143.75,143.73,2.45720112]
[1768689228934,2.41095614,143.75,143.73,2.45720112]
[1768689234053,9.36197358,143.76,143.73,2.45720112]
[1768689244159,17.64552787,143.78,143.75,2.40044839]
[1768689244661,24.60079748,143.78,143.75,4.48237397]
[1768689244955,4.48745345,143.77,143.74,2.40044839]
[1768689245155,11.44306467,143.77,143.74,2.40044839]
[1768689246348,11.44306467,143.77,143.72,9.35842222]
[1768689246349,2.16610247,143.76,143.72,9.35842222]
[1768689246554,2.16610247,143.76,143.73,2.40044839]
[1768689247454,2.16610247,143.76,143.73,9.3578438]
[1768689247767,4.24802805,143.76,143.73,9.3578438]
[1768689249948,11.20416233,143.76,143.73,2.40044839]
[1768689253367,9.12223675,143.76,143.73,2.40044839]
[1768689259274,2.18766463,143.75,143.72,2.40044839]
[1768689259482,2.15766464,143.75,143.72,2.40044839]
[1768689261977,2.15766464,143.75,143.72,9.35819311]
[1768689262474,2.12766465,143.75,143.72,9.35819311]
[1768689269776,6.95613428,143.76,143.73,2.46685076]
[1768689270185,9.09937912,143.76,143.73,2.46685076]
[1768689274579,6.95613428,143.76,143.73,2.46685076]
[1768689276896,6.955554,143.77,143.74,2.47309589]
[1768689291904,9.12459056,143.77,143.74,2.47309589]
[1768689298813,9.13051539,143.76,143.73,9.51830845]
[1768689300724,9.13051539,143.76,143.73,2.56103905]
[1768689301009,2.17616261,143.75,143.72,9.51883793]
[1768689306231,9.13299018,143.75,143.72,2.56103905]
[1768689318109,2.18998031,143.74,143.71,9.51939703]
[1768689318504,2.18998031,143.74,143.72,2.56103905]
[1768689318703,9.14680788,143.75,143.72,2.56103905]
[1768689328309,6.95682757,143.75,143.7,6.95876162]
[1768689328609,2.19711404,143.74,143.7,9.3632611]
[1768689329424,9.15443973,143.74,143.7,9.3632611]
[1768689332241,9.15443973,143.74,143.71,2.40449948]
[1768689334223,2.20120377,143.73,143.7,2.54012947]
[1768689334927,9.15852946,143.74,143.7,2.54012947]
[1768689335129,2.20176148,143.72,143.69,2.54012947]
[1768689336529,9.16005924,143.72,143.69,2.54012947]
[1768689338223,9.13005925,143.72,143.69,2.54012947]
[1768689338630,9.10005926,143.72,143.69,2.54012947]
[1768689344749,9.10513921,143.71,143.68,2.54012947]
[1768689344951,9.07513922,143.71,143.68,2.54012947]
[1768689346851,9.04513923,143.71,143.68,2.54012947]
[1768689351653,9.01513924,143.71,143.68,2.54012947]
[1768689358336,8.98513925,143.71,143.68,2.54012947]
[1768689360659,2.03521908,143.7,143.67,2.56009706]
[1768689360856,2.00521909,143.7,143.67,2.56009706]
[1768689361958,8.96461563,143.7,143.67,2.56009706]
[1768689365458,8.93461564,143.7,143.67,2.56009706]
[1768689372063,24.35675214,143.7,143.65,2.56009706]
[1768689373442,24.35675214,143.7,143.66,2.56009706]
[1768689374063,1.95226733,143.69,143.66,2.56009706]
[1768689374244,26.31037672,143.69,143.64,2.08230801]
[1768689374565,26.31037672,143.69,143.64,9.04413929]
[1768689374566,8.91181037,143.69,143.64,9.04413929]
[1768689376369,8.91181037,143.69,143.65,2.56009706]
[1768689376667,2.47152036,143.68,143.65,2.56009706]
[1768689377763,9.43156098,143.68,143.65,2.56009706]
[1768689378962,2.47152036,143.67,143.63,11.60439995]
[1768689379150,2.47152036,143.67,143.64,2.56009706]
[1768689380471,9.43227196,143.67,143.64,2.56009706]
[1768689381051,9.43227196,143.67,143.62,6.96269106]
[1768689381052,6.9607516,143.67,143.62,6.96269106]
[1768689381250,2.47152036,143.66,143.63,4.64240507]
[1768689382277,9.58632431,143.67,143.64,2.52184007]
[1768689383576,2.62557271,143.66,143.62,9.04499907]
[1768689383771,2.62557271,143.66,143.63,2.52184007]
[1768689385578,2.59557272,143.66,143.63,2.52184007]
[1768689386257,9.55655781,143.66,143.63,2.52184007]
[1768689386864,6.96098509,143.66,143.6,9.5852891]
[1768689387060,6.96098509,143.66,143.61,2.08230801]
[1768689387373,24.47233705,143.66,143.61,4.60414808]
[1768689387577,2.62557271,143.64,143.61,4.60414808]
[1768689391282,2.62557271,143.64,143.61,2.52184007]
[1768689391486,2.62557271,143.64,143.61,4.60658868]
[1768689391782,2.36475117,143.63,143.6,0.1]
[1768689392082,29.26500364,143.65,143.61,2.52184007]
[1768689393167,29.26500364,143.65,143.61,2.08474861]
[1768689393371,22.20155461,143.65,143.62,2.52184007]
[1768689395291,6.96155461,143.65,143.62,2.52184007]
[1768689396885,9.28240043,143.64,143.6,7.06362664]
[1768689397084,2.31157064,143.63,143.6,7.06362664]
[1768689397274,9.27342874,143.64,143.61,2.52862741]
[1768689399499,2.29393523,143.63,143.6,9.59225405]
[1768689400787,2.29393523,143.63,143.6,11.67700266]
[1768689401594,2.29393523,143.63,143.6,9.59225405]
[1768689401789,2.29393523,143.63,143.6,11.67700266]
[1768689402002,9.23844508,143.65,143.62,2.52862741]
[1768689421317,2.11788521,143.67,143.63,2.54360469]
[1768689421505,9.07859245,143.67,143.63,2.54360469]
[1768689429312,9.07859245,143.67,143.63,2.08474861]
[1768689429613,9.07859245,143.67,143.64,2.54360469]
[1768689429792,9.07859245,143.67,143.64,2.48360469]
[1768689433521,2.10300622,143.66,143.62,6.96269415]
[1768689433725,2.10300622,143.65,143.61,2.54360469]
[1768689434606,2.10300622,143.65,143.62,9.50641156]
[1768689435305,2.09143016,143.65,143.61,2.54360469]
[1768689439109,9.03076832,143.64,143.61,2.54360469]
[1768689441230,2.05804794,143.65,143.61,2.54360469]
[1768689441425,2.05804794,143.65,143.62,2.54360469]
[1768689443224,9.00398673,143.65,143.62,2.54360469]
[1768689444335,9.00398673,143.65,143.62,2.48360469]
[1768689444803,2.09704453,143.64,143.6,0.1]
[1768689445702,9.05908512,143.64,143.6,0.1]
[1768689446322,9.05908512,143.64,143.61,2.23537606]
[1768689448607,6.96204059,143.64,143.61,2.23537606]
[1768689454633,9.00601754,143.64,143.61,2.23537606]
[1768689474059,1.95951332,143.63,143.61,2.23537606]
[1768689474236,1.95951332,143.63,143.6,2.28347776]
[1768689476048,8.92188164,143.63,143.6,2.28347776]
[1768689476433,8.92188164,143.63,143.6,0.1]
[1768689476434,1.952487,143.62,143.6,0.1]
[1768689476752,1.952487,143.61,143.59,0.5529272]
[1768689477658,8.9121609,143.62,143.59,2.73640496]
[1768689477848,1.94903425,143.61,143.59,0.5529272]
[1768689480364,8.90203878,143.62,143.59,2.67640496]
[1768689480661,8.9009691,143.64,143.6,2.18347776]
[1768689480840,1.93891213,143.64,143.6,2.18347776]
[1768689481160,10.98224081,143.65,143.6,2.18347776]
[1768689481370,8.89706736,143.65,143.6,2.18347776]
[1768689481744,10.98224081,143.65,143.6,2.18347776]
[1768689482059,1.93235634,143.64,143.6,2.18347776]
[1768689484161,1.93235634,143.64,143.59,7.45702759]
[1768689484462,1.82595028,143.59,143.57,0.1]
[1768689484653,8.78876882,143.62,143.57,2.28347776]
[1768689484855,8.78876882,143.62,143.57,2.18517345]
[1768689485068,17.06280233,143.63,143.59,2.18347776]
[1768689485240,1.82280233,143.63,143.6,2.18347776]
[1768689485441,8.78465139,143.64,143.6,2.18347776]
[1768689485749,1.82280233,143.63,143.6,2.18347776]
[1768689486155,1.82280233,143.63,143.57,0.1]
[1768689486353,1.81969054,143.62,143.58,2.18347776]
[1768689488466,8.78265166,143.62,143.58,2.18347776]
[1768689488783,1.81357377,143.61,143.58,2.18347776]
[1768689490568,8.77691619,143.61,143.58,2.18347776]
[1768689493956,1.7948982,143.6,143.57,0.1]
[1768689494161,8.75824062,143.61,143.57,2.28347776]
[1768689494359,6.96334242,143.61,143.57,2.28347776]
[1768689494571,8.75781717,143.62,143.59,2.18347776]
[1768689496479,8.75781717,143.62,143.58,2.18347776]
[1768689496657,8.75781717,143.62,143.58,4.26865121]
[1768689497479,8.75781717,143.62,143.59,2.18347776]
[1768689501480,1.77442689,143.6,143.57,0.1]
[1768689501669,1.77442689,143.6,143.56,2.28347776]
[1768689502066,1.77442689,143.6,143.56,2.22347776]
[1768689502463,1.77442689,143.6,143.56,2.16347776]
[1768689502665,6.42028938,143.6,143.56,2.16347776]
[1768689502979,6.42028938,143.6,143.55,2.08517345]
[1768689503183,6.42028938,143.6,143.51,38.00402703]
[1768689503184,1.77442689,143.6,143.51,38.00402703]
[1768689503387,1.77442689,143.6,143.55,2.08517345]
[1768689503879,8.73869393,143.6,143.55,2.08517345]
[1768689504077,8.73869393,143.6,143.51,38.00402703]
[1768689504292,2.12130719,143.59,143.55,2.08517345]
[1768689504791,2.12130719,143.59,143.49,17.42241498]
[1768689504990,2.12130719,143.59,143.55,2.19241737]
[1768689505288,24.37373779,143.6,143.57,2.19241737]
[1768689505289,27.86468215,143.6,143.57,2.19241737]
[1768689505584,9.08516376,143.6,143.57,2.19241737]
[1768689505959,2.12130719,143.59,143.55,2.19241737]
[1768689506379,6.96385657,143.6,143.55,2.19241737]
[1768689506583,9.08516376,143.6,143.56,2.19241737]
[1768689507080,2.12130719,143.59,143.56,2.19241737]
[1768689508900,6.96385657,143.6,143.56,2.19241737]
[1768689509181,2.12130719,143.61,143.57,2.19241737]
[1768689510194,2.12130719,143.6,143.57,2.19241737]
[1768689511301,2.12130719,143.6,143.55,6.96607087]
[1768689511480,2.12130719,143.56,143.52,2.19241737]
[1768689511679,2.12130719,143.58,143.52,2.19241737]
[1768689511983,2.12130719,143.58,143.54,2.19241737]
[1768689512161,9.08615194,143.58,143.54,2.19241737]
[1768689512563,9.08615194,143.58,143.54,4.27759082]
[1768689512991,9.08615194,143.58,143.54,2.19241737]
[1768689513161,9.08615194,143.58,143.54,4.27759082]
[1768689513360,9.08615194,143.58,143.54,4.27890528]
[1768689513591,9.08615194,143.58,143.54,2.19241737]
[1768689514080,9.08615194,143.58,143.54,4.27890528]
[1768689514287,2.13626538,143.57,143.54,2.19241737]
[1768689514486,9.10111013,143.58,143.54,2.19241737]
[1768689514686,2.13626538,143.57,143.52,2.09566913]
[1768689514987,2.13626538,143.57,143.53,2.09566913]
[1768689515789,9.10186549,143.57,143.53,2.09566913]
[1768689515986,2.13626538,143.56,143.53,2.09566913]
[1768689516290,2.13626538,143.56,143.52,2.09566913]
[1768689516489,2.13626538,143.55,143.5,2.09566913]
[1768689516691,2.13626538,143.54,143.5,2.09566913]
[1768689518086,9.10314178,143.54,143.5,2.09566913]
[1768689518285,2.13626538,143.53,143.49,2.09566913]
[1768689518813,2.13626538,143.53,143.5,2.09566913]
[1768689520692,9.10314178,143.54,143.5,4.18215704]
[1768689520892,9.10314178,143.54,143.51,2.09566913]
[1768689521182,2.13626538,143.53,143.49,2.09566913]
[1768689522102,6.96767001,143.52,143.49,2.09566913]
[1768689522398,2.13626538,143.51,143.48,4.35591304]
[1768689522600,6.93767002,143.52,143.49,2.09566913]
[1768689523096,6.93767002,143.52,143.49,4.18215704]
[1768689523281,6.93767002,143.52,143.5,2.09566913]
[1768689523790,6.90767003,143.52,143.5,2.09566913]
[1768689524198,17.41674794,143.54,143.5,2.09566913]
[1768689524199,24.38344711,143.54,143.5,2.09566913]
[1768689524571,2.10626539,143.53,143.5,2.09566913]
[1768689525399,9.04392481,143.53,143.5,2.09566913]
[1768689525584,9.04392481,143.53,143.49,2.09566913]
[1768689525791,9.04392481,143.53,143.49,4.18215704]
[1768689526389,9.04392481,143.53,143.49,2.09566913]
[1768689526595,9.04392481,143.53,143.5,2.09566913]
[1768689529702,2.13626538,143.52,143.49,2.09566913]
[1768689529894,2.13626538,143.52,143.48,11.32511031]
[1768689530097,2.13626538,143.52,143.48,9.22944118]
[1768689530296,2.10626539,143.52,143.48,9.22944118]
[1768689530805,2.08648791,143.52,143.46,2.09566913]
[1768689531001,2.08648791,143.52,143.47,2.09566913]
[1768689531002,9.05420629,143.52,143.47,2.09566913]
[1768689531215,6.96771838,143.52,143.48,2.09566913]
[1768689531802,6.93771839,143.52,143.48,2.09566913]
[1768689532202,6.9077184,143.52,143.48,2.09566913]
[1768689532504,17.41857749,143.53,143.48,2.09566913]
[1768689532806,19.5050654,143.53,143.48,2.09566913]
[1768689533215,17.41857749,143.53,143.49,2.20857359]
[1768689533506,19.5050654,143.53,143.49,2.20857359]
[1768689533684,17.41857749,143.53,143.49,2.20857359]
[1768689534011,24.38576205,143.53,143.49,2.20857359]
[1768689535799,17.41857749,143.53,143.49,2.20857359]
[1768689536202,2.08648791,143.52,143.46,6.97039234]
[1768689536398,2.05648792,143.51,143.46,6.97039234]
[1768689536606,17.41857749,143.53,143.46,6.97039234]
[1768689536796,2.08648791,143.52,143.46,11.26545384]
[1768689536992,32.67857749,143.53,143.44,2.30857359]
[1768689537196,2.08648791,143.5,143.45,2.20857359]
[1768689537806,6.96906209,143.5,143.45,2.20857359]
[1768689538007,9.05555,143.5,143.45,2.20857359]
[1768689538318,2.08648791,143.49,143.45,2.20857359]
[1768689538519,2.05648792,143.49,143.45,2.20857359]
[1768689538819,24.39066487,143.5,143.45,2.20857359]
[1768689538997,2.08648791,143.49,143.45,2.20857359]
[1768689539197,24.39066487,143.5,143.45,2.20857359]
[1768689539992,24.39066487,143.5,143.46,2.20857359]
[1768689540903,6.96906209,143.5,143.47,2.20857359]
[1768689541618,6.96906209,143.5,143.48,2.20857359]
[1768689541793,6.96815552,143.51,143.48,2.20857359]
[1768689543731,24.38710239,143.52,143.48,2.20857359]
[1768689544020,26.4735903,143.52,143.48,2.20857359]
[1768689544193,24.38710239,143.52,143.48,2.20857359]
[1768689547196,6.96767001,143.52,143.48,2.20857359]
[1768689547397,6.96767001,143.52,143.48,4.2950615]
[1768689547596,6.96767001,143.52,143.49,2.20857359]
[1768689548601,24.38514596,143.53,143.49,2.20857359]
[1768689549324,2.08648791,143.52,143.47,2.20857359]
[1768689549500,24.38514596,143.53,143.47,2.20857359]
[1768689549701,26.47163387,143.53,143.47,2.20857359]
[1768689551426,24.38514596,143.53,143.47,2.20857359]
[1768689551726,26.47163387,143.53,143.47,2.20857359]
[1768689553333,6.96815552,143.51,143.47,2.20857359]
[1768689558833,2.08648791,143.51,143.47,2.20857359]
[1768689559302,17.4198156,143.52,143.47,2.20857359]
[1768689559826,19.50630351,143.52,143.47,2.20857359]
[1768689560026,17.4198156,143.52,143.47,2.20857359]
[1768689561125,6.96864111,143.5,143.47,2.20857359]
[1768689565130,17.4198156,143.52,143.47,2.20857359]
[1768689565332,1.84157764,143.5,143.44,0.1]
[1768689565714,1.84157764,143.5,143.45,2.08648791]
[1768689566232,1.83186485,143.49,143.44,0.1]
[1768689566821,1.83186485,143.49,143.44,2.18648791]
[1768689567122,6.96961248,143.48,143.44,0.1]
[1768689567334,6.96961248,143.48,143.45,4.21703624]
[1768689568624,8.78238514,143.48,143.45,2.13054833]
[1768689568840,1.81277266,143.47,143.43,2.23054833]
[1768689569016,6.96961248,143.48,143.44,2.13054833]
[1768689569017,26.19703442,143.48,143.44,2.13054833]
[1768689569208,8.7730032,143.48,143.44,2.13054833]
[1768689570947,103.3,143.52,143.45,2.13054833]
[1768689570948,1.79411654,143.52,143.45,2.13054833]
[1768689571115,1.7820142,143.51,143.47,2.13054833]
[1768689572230,6.42922338,143.51,143.47,2.13054833]
[1768689572839,13.39755168,143.51,143.47,2.13054833]
[1768689573035,1.75822495,143.5,143.47,2.13054833]
[1768689574258,13.37584782,143.5,143.47,2.13054833]
[1768689574549,8.72721843,143.5,143.47,2.13054833]
[1768689580361,26.05692306,143.51,143.47,2.13054833]
[1768689580555,4.65140293,143.5,143.47,2.13054833]
[1768689581761,11.62011225,143.5,143.47,2.13054833]
[1768689581946,6.96870932,143.5,143.47,2.13054833]
[1768689590369,1.56714101,143.5,143.47,2.13054833]
[1768689591275,6.96912676,143.49,143.47,2.13054833]
[1768689595587,25.90032464,143.51,143.47,2.13054833]
[1768689595775,6.16569201,143.5,143.47,2.13054833]